fUSD/lending_fUSD_20260605
["ID","MTS","AMOUNT","RATE_DAILY","PERIOD"]
[424188108,1780635051000,-435.93,0.00029042,7]
[424188114,1780635051000,-362.34445814,0.00029091,2]
[424188115,1780635051000,-166.38427095,0.00029091,2]
[424188117,1780635051000,-511.05187504,0.00029091,2]
[424188122,1780635051000,-335.67221128,0.00029091,2]
[424188116,1780635051000,-368.75479711,0.00029091,2]
[424188123,1780635051000,-190.94850477,0.00029091,2]
[424188062,1780635051000,-8916.48506059,0.00029,30]
[424188126,1780635051000,-385.58612712,0.00029091,2]
[424188124,1780635051000,-231.33201121,0.00029091,2]
[424188125,1780635051000,-423.33055728,0.00029091,2]
[424188119,1780635051000,-200.20953748,0.00029091,2]
[424188118,1780635051000,-162.20367635,0.00029091,2]
[424188093,1780635051000,-158.0,0.00029,2]
[424188090,1780635051000,-158.0,0.00029,2]
[424188121,1780635051000,-313.17963202,0.00029091,2]
[424188094,1780635051000,-158.0,0.00029,2]
[424188100,1780635051000,-1601.06150107,0.00029,2]
[424188070,1780635051000,-200.0,0.00029,2]
[424188072,1780635051000,-396.05208952,0.00029,2]
[424188071,1780635051000,-263.87,0.00029,2]
[424188065,1780635051000,-219.74560225,0.00029,2]
[424188061,1780635051000,-174.55,0.00029,2]
[424188066,1780635051000,-511.31569034,0.00029,2]
[424188064,1780635051000,-5688.15405423,0.00029,5]
[424188063,1780635051000,-656.52446741,0.00029,2]
[424188069,1780635051000,-200.0,0.00029,2]
[424188068,1780635051000,-200.0,0.00029,2]
[424188067,1780635051000,-200.0,0.00029,2]
[424188075,1780635051000,-10000.0,0.00029,2]
[424188078,1780635051000,-159.0,0.00029,2]
[424188077,1780635051000,-10000.0,0.00029,2]
[424188074,1780635051000,-200.0,0.00029,2]
[424188079,1780635051000,-157.0,0.00029,2]
[424188076,1780635051000,-1121.0,0.00029,2]
[424188091,1780635051000,-158.0,0.00029,2]
[424188099,1780635051000,-1085.42,0.00029,30]
[424188089,1780635051000,-158.0,0.00029,2]
[424188083,1780635051000,-157.0,0.00029,2]
[424188082,1780635051000,-157.0,0.00029,2]
[424188088,1780635051000,-158.0,0.00029,2]
[424188084,1780635051000,-157.0,0.00029,2]
[424188086,1780635051000,-158.0,0.00029,2]
[424188085,1780635051000,-164.0,0.00029,2]
[424188080,1780635051000,-157.0,0.00029,2]
[424188101,1780635051000,-1601.06150105,0.00029,2]
[424188081,1780635051000,-157.0,0.00029,2]
[424188087,1780635051000,-158.0,0.00029,2]
[424188154,1780635052000,-352.63385431,0.00029169,2]
[424188157,1780635052000,-395.4959343,0.00029169,2]
[424188160,1780635052000,-473.36511855,0.00029169,2]
[424188161,1780635052000,-544.02799258,0.00029169,2]
[424188158,1780635052000,-378.478685,0.00029169,2]
[424188165,1780635052000,-435.93,0.00029169,30]
[424188163,1780635052000,-431.51764512,0.00029169,2]
[424188169,1780635052000,-435.14,0.00029232,7]
[424188167,1780635052000,-435.09,0.00029201,2]
[424188164,1780635052000,-435.09,0.00029169,30]
[424188159,1780635052000,-345.350357,0.00029169,2]
[424188176,1780635052000,-1677.93,0.00029299,7]
[424188166,1780635052000,-308.17868021,0.00029175,2]
[424188168,1780635052000,-435.93,0.00029201,2]
[424188170,1780635052000,-435.95,0.00029232,7]
[424188172,1780635052000,-1650.54,0.00029299,7]
[424188171,1780635052000,-905.31,0.00029299,7]
[424188173,1780635052000,-1674.67,0.00029299,7]
[424188175,1780635052000,-1652.06,0.00029299,7]
[424188188,1780635052000,-1107.97277636,0.000294,5]
[424188177,1780635052000,-186.17752465,0.00029343,2]
[424188179,1780635052000,-674.26,0.000294,7]
[424188149,1780635052000,-382.18780203,0.00029169,2]
[424188162,1780635052000,-348.57028155,0.00029169,2]
[424188146,1780635052000,-197.07564073,0.00029169,2]
[424188140,1780635052000,-343.95808146,0.00029166,2]
[424188155,1780635052000,-322.06062397,0.00029169,2]
[424188127,1780635052000,-308.21323235,0.00029091,2]
[424188128,1780635052000,-435.09,0.00029105,2]
[424188129,1780635052000,-435.93,0.00029105,2]
[424188130,1780635052000,-301.6701774,0.0002913,7]
[424188131,1780635052000,-905.31,0.00029132,30]
[424188139,1780635052000,-169.63,0.00029163,3]
[424188142,1780635052000,-182.93484641,0.00029166,2]
[424188133,1780635052000,-1674.67,0.00029132,30]
[424188132,1780635052000,-1650.54,0.00029132,30]
[424188141,1780635052000,-179.01146848,0.00029166,2]
[424188134,1780635052000,-905.14,0.00029132,30]
[424188148,1780635052000,-351.99849969,0.00029169,2]
[424188136,1780635052000,-1677.93,0.00029132,30]
[424188135,1780635052000,-1652.06,0.00029132,30]
[424188137,1780635052000,-435.09,0.00029137,7]
[424188143,1780635052000,-213.37614176,0.00029166,2]
[424188150,1780635052000,-244.02007612,0.00029169,2]
[424188151,1780635052000,-362.02401331,0.00029169,2]
[424188144,1780635052000,-329.66630008,0.00029166,2]
[424188145,1780635052000,-166.0003199,0.00029169,2]
[424188156,1780635052000,-158.56818748,0.00029169,2]
[424188152,1780635052000,-223.27138197,0.00029169,2]
[424188153,1780635052000,-218.45859509,0.00029169,2]
[424188147,1780635052000,-172.14896703,0.00029169,2]
[424188138,1780635052000,-435.93,0.00029137,7]
[424188182,1780635052000,-980.58,0.000294,14]
[424188174,1780635052000,-905.14,0.00029299,7]
[424188178,1780635052000,-868.04,0.000294,30]
[424188211,1780635052000,-377.0,0.00029421,30]
[424188212,1780635052000,-541.0,0.00029421,30]
[424188214,1780635052000,-716.0,0.00029422,30]
[424188215,1780635052000,-1824.0,0.00029422,30]
[424188216,1780635052000,-535.0,0.00029422,30]
[424188217,1780635052000,-780.0,0.00029425,30]
[424188218,1780635052000,-1148.0,0.00029425,30]
[424188225,1780635052000,-150.52165905,0.00029586,2]
[424188226,1780635052000,-500.0,0.00029596,4]
[424188222,1780635052000,-2571.0,0.00029472,30]
[424188219,1780635052000,-152.0,0.00029472,3]
[424188210,1780635052000,-2473.0,0.00029421,30]
[424188224,1780635052000,-186.18115721,0.00029583,2]
[424188223,1780635052000,-150.0,0.00029534,2]
[424188228,1780635052000,-186.17752465,0.00029716,2]
[424188227,1780635052000,-200.0,0.00029628,2]
[424188229,1780635052000,-154.32416432,0.00029776,20]
[424188231,1780635052000,-1273.0,0.00029834,2]
[424188232,1780635052000,-525.0,0.00029834,2]
[424188233,1780635052000,-150.0,0.00029834,2]
[424188230,1780635052000,-1357.0,0.00029834,2]
[424188234,1780635052000,-419.0,0.00029834,2]
[424188235,1780635052000,-933.0,0.00029834,2]
[424188187,1780635052000,-1103.79218723,0.000294,5]
[424188221,1780635052000,-2776.0,0.00029472,30]
[424188209,1780635052000,-471.0,0.00029421,30]
[424188220,1780635052000,-538.0,0.00029472,30]
[424188206,1780635052000,-1023.83961001,0.000294,5]
[424188208,1780635052000,-687.0,0.00029421,30]
[424188181,1780635052000,-1711.94,0.000294,7]
[424188180,1780635052000,-1231.06,0.000294,7]
[424188186,1780635052000,-1020.7110088,0.000294,5]
[424188185,1780635052000,-1120.73259366,0.000294,5]
[424188183,1780635052000,-1141.97351159,0.000294,5]
[424188184,1780635052000,-1010.46835291,0.000294,5]
[424188189,1780635052000,-1033.88684214,0.000294,5]
[424188193,1780635052000,-1122.3941436,0.000294,5]
[424188194,1780635052000,-1033.06489716,0.000294,5]
[424188196,1780635052000,-1015.87669225,0.000294,5]
[424188199,1780635052000,-1052.46230986,0.000294,5]
[424188191,1780635052000,-1068.80350562,0.000294,5]
[424188213,1780635052000,-2628.0,0.00029422,30]
[424188198,1780635052000,-1044.75196347,0.000294,5]
[424188195,1780635052000,-1122.22787216,0.000294,5]
[424188197,1780635052000,-1068.67656546,0.000294,5]
[424188201,1780635052000,-1079.76873307,0.000294,5]
[424188200,1780635052000,-1019.6009839,0.000294,5]
[424188190,1780635052000,-1047.52957931,0.000294,5]
[424188203,1780635052000,-1084.00666542,0.000294,5]
[424188202,1780635052000,-1133.03913358,0.000294,5]
[424188207,1780635052000,-1575.1989564,0.000294,5]
[424188204,1780635052000,-1101.67484799,0.000294,5]
[424188192,1780635052000,-1026.92566733,0.000294,5]
[424188205,1780635052000,-1118.92876878,0.000294,5]
[424188274,1780635053000,-1852.48124811,0.0003,2]
[424188279,1780635053000,-9910.12031461,0.0003,14]
[424188268,1780635053000,-1941.91000824,0.0003,3]
[424188282,1780635053000,-1231.06,0.0003,7]
[424188273,1780635053000,-1125.09091813,0.0003,2]
[424188277,1780635053000,-166.13870843,0.0003,2]
[424188270,1780635053000,-70727.59586373,0.0003,2]
[424188271,1780635053000,-2000.0,0.0003,3]
[424188276,1780635053000,-1000.0,0.0003,2]
[424188272,1780635053000,-11183.19259809,0.0003,2]
[424188269,1780635053000,-20259.24816589,0.0003,2]
[424188288,1780635053000,-200.0,0.0003,2]
[424188275,1780635053000,-899.04564997,0.0003,10]
[424188289,1780635053000,-1000.0,0.0003,14]
[424188292,1780635053000,-515.93712219,0.0003004,2]
[424188285,1780635053000,-650.0,0.0003,2]
[424188278,1780635053000,-4806.49535936,0.0003,24]
[424188284,1780635053000,-1711.94,0.0003,7]
[424188280,1780635053000,-368.8693423,0.0003,30]
[424188283,1780635053000,-200.0,0.0003,2]
[424188281,1780635053000,-173.0,0.0003,14]
[424188290,1780635053000,-1085.42,0.0003,30]
[424188286,1780635053000,-200.0,0.0003,2]
[424188291,1780635053000,-2000.0,0.0003,7]
[424188295,1780635053000,-358.02293695,0.0003004,2]
[424188299,1780635053000,-426.75228353,0.0003004,2]
[424188294,1780635053000,-169.70768718,0.0003004,2]
[424188266,1780635053000,-151.0,0.00029997,7]
[424188287,1780635053000,-215.77576141,0.0003,30]
[424188267,1780635053000,-25362.16138708,0.0003,5]
[424188238,1780635053000,-200.0,0.00029899,2]
[424188260,1780635053000,-462.31984853,0.00029963,2]
[424188237,1780635053000,-151.0,0.00029896,7]
[424188239,1780635053000,-30476.0455475,0.000299,2]
[424188236,1780635053000,-500.0,0.00029843,2]
[424188302,1780635053000,-240.20559195,0.0003004,2]
[424188240,1780635053000,-880.0,0.000299,10]
[424188244,1780635053000,-476.53770279,0.00029963,2]
[424188245,1780635053000,-543.5166872,0.00029963,2]
[424188243,1780635053000,-586.14840351,0.00029963,2]
[424188242,1780635053000,-332.76854189,0.00029963,2]
[424188241,1780635053000,-2500.0,0.000299,10]
[424188249,1780635053000,-269.47404198,0.00029963,2]
[424188247,1780635053000,-766.57781256,0.00029963,2]
[424188246,1780635053000,-553.13219566,0.00029963,2]
[424188265,1780635053000,-195.82730691,0.00029963,2]
[424188251,1780635053000,-234.99590675,0.00029963,2]
[424188248,1780635053000,-324.40735271,0.00029963,2]
[424188253,1780635053000,-368.93680623,0.00029963,2]
[424188264,1780635053000,-190.41229338,0.00029963,2]
[424188263,1780635053000,-204.57848997,0.00029963,2]
[424188252,1780635053000,-400.41907495,0.00029963,2]
[424188257,1780635053000,-462.66402242,0.00029963,2]
[424188254,1780635053000,-469.76944804,0.00029963,2]
[424188255,1780635053000,-503.50831692,0.00029963,2]
[424188261,1780635053000,-246.04783362,0.00029963,2]
[424188259,1780635053000,-578.37919069,0.00029963,2]
[424188256,1780635053000,-381.89700953,0.00029963,2]
[424188258,1780635053000,-634.99583592,0.00029963,2]
[424188262,1780635053000,-172.653053,0.00029963,2]
[424188250,1780635053000,-268.89184314,0.00029963,2]
[424188293,1780635053000,-293.26108475,0.0003004,2]
[424188296,1780635053000,-215.60768906,0.0003004,2]
[424188297,1780635053000,-365.86969282,0.0003004,2]
[424188338,1780635053000,-167.63194436,0.00030127,7]
[424188337,1780635053000,-3108.0,0.000301,7]
[424188339,1780635053000,-151.0,0.00030127,7]
[424188340,1780635053000,-151.0,0.00030127,7]
[424188333,1780635053000,-1000.0,0.0003007,2]
[424188336,1780635053000,-980.58,0.000301,14]
[424188330,1780635053000,-647.27646768,0.00030043,2]
[424188341,1780635053000,-1094.26313574,0.0003013,2]
[424188335,1780635053000,-186.17752465,0.00030088,2]
[424188344,1780635053000,-205.57018299,0.0003013,2]
[424188350,1780635053000,-191.233345,0.0003013,7]
[424188343,1780635053000,-646.19632428,0.0003013,2]
[424188353,1780635053000,-388.640489,0.0003013,7]
[424188352,1780635053000,-388.640489,0.0003013,7]
[424188354,1780635053000,-388.640489,0.0003013,7]
[424188347,1780635053000,-1918.15308054,0.0003013,2]
[424188345,1780635053000,-302.53429542,0.0003013,2]
[424188346,1780635053000,-3065176.13699904,0.0003013,7]
[424188348,1780635053000,-200.0,0.0003013,2]
[424188349,1780635053000,-151.0,0.0003013,7]
[424188355,1780635053000,-151.0,0.0003013,7]
[424188356,1780635053000,-160.673706,0.0003013,7]
[424188361,1780635053000,-153.088833,0.0003013,7]
[424188359,1780635053000,-160.673706,0.0003013,7]
[424188358,1780635053000,-160.673706,0.0003013,7]
[424188360,1780635053000,-151.0,0.0003013,7]
[424188357,1780635053000,-160.673706,0.0003013,7]
[424188298,1780635053000,-459.62277664,0.0003004,2]
[424188362,1780635053000,-151.0,0.0003013,7]
[424188342,1780635053000,-14123.40733269,0.0003013,2]
[424188334,1780635053000,-500.0,0.0003007,2]
[424188351,1780635053000,-388.640489,0.0003013,7]
[424188331,1780635053000,-462.26802031,0.00030049,2]
[424188303,1780635053000,-250.30322579,0.0003004,2]
[424188301,1780635053000,-258.28837843,0.0003004,2]
[424188332,1780635053000,-238.84136573,0.00030049,2]
[424188300,1780635053000,-494.49945012,0.0003004,2]
[424188316,1780635053000,-150.19828257,0.00030043,2]
[424188315,1780635053000,-543.03601997,0.00030043,2]
[424188304,1780635053000,-243.33337437,0.0003004,2]
[424188314,1780635053000,-263.25070187,0.00030043,2]
[424188305,1780635053000,-225.33231238,0.00030043,2]
[424188312,1780635053000,-488.04015224,0.00030043,2]
[424188308,1780635053000,-344.29793406,0.00030043,2]
[424188310,1780635053000,-527.99774954,0.00030043,2]
[424188309,1780635053000,-201.10486381,0.00030043,2]
[424188307,1780635053000,-394.15128145,0.00030043,2]
[424188313,1780635053000,-235.44628426,0.00030043,2]
[424188306,1780635053000,-332.00063981,0.00030043,2]
[424188324,1780635053000,-593.24390144,0.00030043,2]
[424188327,1780635053000,-816.04198888,0.00030043,2]
[424188311,1780635053000,-573.28170304,0.00030043,2]
[424188325,1780635053000,-567.7180275,0.00030043,2]
[424188318,1780635053000,-284.77957631,0.00030043,2]
[424188328,1780635053000,-710.04767783,0.00030043,2]
[424188329,1780635053000,-522.85542233,0.00030043,2]
[424188321,1780635053000,-483.09093595,0.00030043,2]
[424188323,1780635053000,-205.77725127,0.00030043,2]
[424188322,1780635053000,-317.13637495,0.00030043,2]
[424188320,1780635053000,-528.95078147,0.00030043,2]
[424188319,1780635053000,-436.91719018,0.00030043,2]
[424188317,1780635053000,-446.54276394,0.00030043,2]
[424188326,1780635053000,-518.0255355,0.00030043,2]
[424188399,1780635054000,-151.0,0.0003013,7]
[424188408,1780635054000,-500.0,0.00030136,2]
[424188400,1780635054000,-668.402565,0.0003013,7]
[424188406,1780635054000,-337030.8220086,0.00030133,2]
[424188401,1780635054000,-668.402565,0.0003013,7]
[424188396,1780635054000,-151.0,0.0003013,7]
[424188398,1780635054000,-668.402565,0.0003013,7]
[424188407,1780635054000,-4718.2451753,0.00030135,2]
[424188403,1780635054000,-1277.391822,0.0003013,7]
[424188402,1780635054000,-1277.391822,0.0003013,7]
[424188405,1780635054000,-1277.391822,0.0003013,7]
[424188410,1780635054000,-500.0,0.00030136,2]
[424188404,1780635054000,-1277.391822,0.0003013,7]
[424188418,1780635054000,-500.0,0.00030136,2]
[424188424,1780635054000,-500.0,0.00030136,2]
[424188421,1780635054000,-500.0,0.00030136,2]
[424188419,1780635054000,-500.0,0.00030136,2]
[424188411,1780635054000,-500.0,0.00030136,2]
[424188409,1780635054000,-500.0,0.00030136,2]
[424188414,1780635054000,-500.0,0.00030136,2]
[424188415,1780635054000,-500.0,0.00030136,2]
[424188417,1780635054000,-500.0,0.00030136,2]
[424188412,1780635054000,-500.0,0.00030136,2]
[424188413,1780635054000,-500.0,0.00030136,2]
[424188416,1780635054000,-500.0,0.00030136,2]
[424188422,1780635054000,-500.0,0.00030136,2]
[424188426,1780635054000,-500.0,0.00030136,2]
[424188425,1780635054000,-500.0,0.00030136,2]
[424188397,1780635054000,-668.402565,0.0003013,7]
[424188420,1780635054000,-500.0,0.00030136,2]
[424188395,1780635054000,-151.0,0.0003013,7]
[424188369,1780635054000,-188.016442,0.0003013,7]
[424188394,1780635054000,-836.056231,0.0003013,7]
[424188428,1780635054000,-500.0,0.00030136,2]
[424188363,1780635054000,-151.0,0.0003013,7]
[424188368,1780635054000,-188.016442,0.0003013,7]
[424188364,1780635054000,-200.0,0.0003013,2]
[424188366,1780635054000,-188.016442,0.0003013,7]
[424188367,1780635054000,-188.016442,0.0003013,7]
[424188365,1780635054000,-151.0,0.0003013,7]
[424188370,1780635054000,-284.914396,0.0003013,7]
[424188372,1780635054000,-284.914396,0.0003013,7]
[424188373,1780635054000,-284.914396,0.0003013,7]
[424188371,1780635054000,-284.914396,0.0003013,7]
[424188375,1780635054000,-151.0,0.0003013,7]
[424188374,1780635054000,-151.0,0.0003013,7]
[424188376,1780635054000,-151.0,0.0003013,7]
[424188393,1780635054000,-836.056231,0.0003013,7]
[424188378,1780635054000,-565.045939,0.0003013,7]
[424188379,1780635054000,-565.045939,0.0003013,7]
[424188381,1780635054000,-1541.829306,0.0003013,7]
[424188380,1780635054000,-565.045939,0.0003013,7]
[424188382,1780635054000,-1541.829306,0.0003013,7]
[424188383,1780635054000,-1541.829306,0.0003013,7]
[424188384,1780635054000,-1541.829306,0.0003013,7]
[424188385,1780635054000,-151.0,0.0003013,7]
[424188388,1780635054000,-151.0,0.0003013,7]
[424188387,1780635054000,-242.001231,0.0003013,7]
[424188386,1780635054000,-153.850309,0.0003013,7]
[424188389,1780635054000,-151.0,0.0003013,7]
[424188390,1780635054000,-151.0,0.0003013,7]
[424188391,1780635054000,-836.056231,0.0003013,7]
[424188392,1780635054000,-836.056231,0.0003013,7]
[424188377,1780635054000,-565.045939,0.0003013,7]
[424188429,1780635054000,-500.0,0.00030136,2]
[424188480,1780635054000,-500.0,0.00030136,2]
[424188423,1780635054000,-500.0,0.00030136,2]
[424188470,1780635054000,-500.0,0.00030136,2]
[424188469,1780635054000,-500.0,0.00030136,2]
[424188471,1780635054000,-500.0,0.00030136,2]
[424188475,1780635054000,-500.0,0.00030136,2]
[424188472,1780635054000,-500.0,0.00030136,2]
[424188474,1780635054000,-500.0,0.00030136,2]
[424188473,1780635054000,-500.0,0.00030136,2]
[424188463,1780635054000,-500.0,0.00030136,2]
[424188467,1780635054000,-500.0,0.00030136,2]
[424188465,1780635054000,-500.0,0.00030136,2]
[424188468,1780635054000,-500.0,0.00030136,2]
[424188466,1780635054000,-500.0,0.00030136,2]
[424188487,1780635054000,-500.0,0.00030136,2]
[424188477,1780635054000,-500.0,0.00030136,2]
[424188464,1780635054000,-500.0,0.00030136,2]
[424188489,1780635054000,-500.0,0.00030136,2]
[424188479,1780635054000,-500.0,0.00030136,2]
[424188484,1780635054000,-500.0,0.00030136,2]
[424188483,1780635054000,-500.0,0.00030136,2]
[424188486,1780635054000,-500.0,0.00030136,2]
[424188481,1780635054000,-500.0,0.00030136,2]
[424188485,1780635054000,-500.0,0.00030136,2]
[424188482,1780635054000,-500.0,0.00030136,2]
[424188478,1780635054000,-500.0,0.00030136,2]
[424188490,1780635054000,-500.0,0.00030136,2]
[424188491,1780635054000,-500.0,0.00030136,2]
[424188493,1780635054000,-500.0,0.00030136,2]
[424188492,1780635054000,-500.0,0.00030136,2]
[424188494,1780635054000,-500.0,0.00030136,2]
[424188427,1780635054000,-500.0,0.00030136,2]
[424188476,1780635054000,-500.0,0.00030136,2]
[424188453,1780635054000,-500.0,0.00030136,2]
[424188488,1780635054000,-500.0,0.00030136,2]
[424188451,1780635054000,-500.0,0.00030136,2]
[424188454,1780635054000,-500.0,0.00030136,2]
[424188431,1780635054000,-500.0,0.00030136,2]
[424188430,1780635054000,-500.0,0.00030136,2]
[424188432,1780635054000,-500.0,0.00030136,2]
[424188433,1780635054000,-500.0,0.00030136,2]
[424188434,1780635054000,-500.0,0.00030136,2]
[424188437,1780635054000,-500.0,0.00030136,2]
[424188444,1780635054000,-500.0,0.00030136,2]
[424188436,1780635054000,-500.0,0.00030136,2]
[424188447,1780635054000,-500.0,0.00030136,2]
[424188445,1780635054000,-500.0,0.00030136,2]
[424188446,1780635054000,-500.0,0.00030136,2]
[424188448,1780635054000,-500.0,0.00030136,2]
[424188440,1780635054000,-500.0,0.00030136,2]
[424188439,1780635054000,-500.0,0.00030136,2]
[424188435,1780635054000,-500.0,0.00030136,2]
[424188441,1780635054000,-500.0,0.00030136,2]
[424188438,1780635054000,-500.0,0.00030136,2]
[424188456,1780635054000,-500.0,0.00030136,2]
[424188452,1780635054000,-500.0,0.00030136,2]
[424188455,1780635054000,-500.0,0.00030136,2]
[424188450,1780635054000,-500.0,0.00030136,2]
[424188462,1780635054000,-500.0,0.00030136,2]
[424188460,1780635054000,-500.0,0.00030136,2]
[424188457,1780635054000,-500.0,0.00030136,2]
[424188459,1780635054000,-500.0,0.00030136,2]
[424188449,1780635054000,-500.0,0.00030136,2]
[424188458,1780635054000,-500.0,0.00030136,2]
[424188443,1780635054000,-500.0,0.00030136,2]
[424188442,1780635054000,-500.0,0.00030136,2]
[424188461,1780635054000,-500.0,0.00030136,2]
[424188539,1780635055000,-1500.0,0.00030137,15]
[424188540,1780635055000,-1500.0,0.00030137,15]
[424188541,1780635055000,-1500.0,0.00030137,15]
[424188542,1780635055000,-1500.0,0.00030137,15]
[424188530,1780635055000,-500.0,0.00030137,3]
[424188532,1780635055000,-1246.9231444,0.00030137,120]
[424188533,1780635055000,-930.00000004,0.00030137,120]
[424188560,1780635055000,-150.0,0.00030137,2]
[424188536,1780635055000,-1500.0,0.00030137,15]
[424188535,1780635055000,-1500.0,0.00030137,15]
[424188534,1780635055000,-150.0,0.00030137,30]
[424188538,1780635055000,-1500.0,0.00030137,15]
[424188531,1780635055000,-12318.12043222,0.00030137,120]
[424188537,1780635055000,-1500.0,0.00030137,15]
[424188545,1780635055000,-309.14,0.00030137,2]
[424188543,1780635055000,-1790.940308,0.00030137,15]
[424188555,1780635055000,-321.12,0.00030137,2]
[424188556,1780635055000,-150.0,0.00030137,2]
[424188554,1780635055000,-321.12,0.00030137,2]
[424188546,1780635055000,-321.13,0.00030137,2]
[424188548,1780635055000,-933.22820109,0.00030137,120]
[424188550,1780635055000,-930.0080705,0.00030137,120]
[424188547,1780635055000,-321.13,0.00030137,2]
[424188549,1780635055000,-930.16141005,0.00030137,120]
[424188553,1780635055000,-930.00000101,0.00030137,120]
[424188551,1780635055000,-930.00040353,0.00030137,120]
[424188552,1780635055000,-930.00002018,0.00030137,120]
[424188557,1780635055000,-150.0,0.00030137,2]
[424188525,1780635055000,-220.0,0.00030137,2]
[424188544,1780635055000,-293.04,0.00030137,2]
[424188523,1780635055000,-220.0,0.00030137,2]
[424188496,1780635055000,-500.0,0.00030136,2]
[424188522,1780635055000,-220.0,0.00030137,2]
[424188495,1780635055000,-500.0,0.00030136,2]
[424188497,1780635055000,-500.0,0.00030136,2]
[424188502,1780635055000,-500.0,0.00030136,2]
[424188500,1780635055000,-500.0,0.00030136,2]
[424188498,1780635055000,-500.0,0.00030136,2]
[424188499,1780635055000,-500.0,0.00030136,2]
[424188501,1780635055000,-500.0,0.00030136,2]
[424188503,1780635055000,-500.0,0.00030136,2]
[424188507,1780635055000,-500.0,0.00030136,2]
[424188515,1780635055000,-500.0,0.00030137,3]
[424188505,1780635055000,-500.0,0.00030136,2]
[424188513,1780635055000,-2500.0,0.00030137,120]
[424188510,1780635055000,-220.01836384,0.00030137,2]
[424188506,1780635055000,-500.0,0.00030136,2]
[424188526,1780635055000,-220.0,0.00030137,2]
[424188508,1780635055000,-706.15,0.00030137,2]
[424188512,1780635055000,-660.05509152,0.00030137,2]
[424188514,1780635055000,-1000.0,0.00030137,120]
[424188504,1780635055000,-500.0,0.00030136,2]
[424188511,1780635055000,-440.03672768,0.00030137,2]
[424188517,1780635055000,-500.0,0.00030137,3]
[424188528,1780635055000,-500.0,0.00030137,3]
[424188516,1780635055000,-500.0,0.00030137,3]
[424188527,1780635055000,-190.83079115,0.00030137,2]
[424188529,1780635055000,-500.0,0.00030137,3]
[424188519,1780635055000,-500.0,0.00030137,3]
[424188521,1780635055000,-220.0,0.00030137,2]
[424188520,1780635055000,-500.0,0.00030137,3]
[424188518,1780635055000,-500.0,0.00030137,3]
[424188524,1780635055000,-220.0,0.00030137,2]
[424188509,1780635055000,-264.41,0.00030137,2]
[424188564,1780635055000,-453.57540836,0.00030137,14]
[424188584,1780635055000,-687.0,0.00030421,30]
[424188561,1780635055000,-150.0,0.00030137,2]
[424188596,1780635055000,-200.0,0.00030431,2]
[424188609,1780635055000,-724.68891627,0.00030545,2]
[424188601,1780635055000,-4908.0,0.00030469,5]
[424188597,1780635055000,-200.0,0.00030431,2]
[424188607,1780635055000,-781.53120468,0.00030545,2]
[424188598,1780635055000,-200.0,0.00030438,2]
[424188603,1780635055000,-2776.0,0.00030472,30]
[424188606,1780635055000,-499.15281284,0.00030545,2]
[424188600,1780635055000,-186.17752465,0.00030461,2]
[424188604,1780635055000,-2571.0,0.00030472,30]
[424188602,1780635055000,-538.0,0.00030472,30]
[424188605,1780635055000,-609.74,0.000305,7]
[424188610,1780635055000,-737.50959422,0.00030545,2]
[424188612,1780635055000,-486.61102906,0.00030545,2]
[424188611,1780635055000,-1022.10375008,0.00030545,2]
[424188613,1780635055000,-538.94808395,0.00030545,2]
[424188622,1780635055000,-337.60866319,0.00030545,2]